bitfinex-derivatives/quotes_ETHF0:USTF0_20250905
["timestamp","ask_amount","ask_price","bid_price","bid_amount"]
[1757088777237,1.7021,4292.8,4292.7,3.49474496]
[1757088777431,1.7021,4292.8,4292.7,3.2078]
[1757088777631,1.7021,4292.8,4292.7,3.7032]
[1757088777831,1.7021,4292.8,4292.7,4.3926]
[1757088778138,1.7021,4292.8,4292.7,3.7032]
[1757088778334,1.7021,4292.8,4292.7,4.8868]
[1757088779438,1.7021,4292.8,4292.7,3.7032]
[1757088779639,1.7021,4292.8,4292.7,4.8868]
[1757088780243,1.7021,4292.8,4292.7,3.2078]
[1757088780433,1.7021,4291.9,4291.8,0.4954]
[1757088780634,1.7021,4291.3,4291.2,3.2078]
[1757088780842,1.7021,4291.3,4291.2,4.8868]
[1757088781043,3.2078,4291.9,4291.2,4.8868]
[1757088781044,3.933,4291.8,4291.7,0.9896]
[1757088781340,1.9441,4291.8,4291.7,0.9896]
[1757088781544,1.9441,4291.8,4291.7,0.4954]
[1757088782434,1.7021,4291.8,4291.7,1.679]
[1757088782643,3.2078,4292.3,4292.2,0.4954]
[1757088782644,3.933,4292.3,4292.2,0.4954]
[1757088782843,1.2031,4292.3,4292.2,1.679]
[1757088783341,1.7021,4292.3,4292.2,1.679]
[1757088783834,0.7199,4292.9,4292.3,0.6894]
[1757088784140,1.9441,4292.8,4292.7,0.4954]
[1757088786944,1.9441,4292.8,4292.3,0.6894]
[1757088787145,1.2031,4292.7,4292.6,1.679]
[1757088787539,1.7021,4292.7,4292.6,1.679]
[1757088787747,1.2031,4292.7,4292.6,0.9896]
[1757088788249,1.2031,4292.7,4292.6,1.679]
[1757088788546,1.2031,4292.7,4292.5,0.2967]
[1757088788547,0.4832,4292.1,4292.0,1.679]
[1757088788945,1.7021,4292.9,4292.8,0.4954]
[1757088789241,1.9441,4292.9,4292.8,1.679]
[1757088789447,1.9441,4292.9,4292.3,0.6894]
[1757088789645,1.9441,4292.9,4292.8,0.4954]
[1757088789845,1.7021,4292.9,4292.8,0.4954]
[1757088790245,0.4832,4292.9,4292.8,1.679]
[1757088790441,3.2078,4293.5,4293.4,0.9896]
[1757088790647,1.2031,4293.5,4293.4,1.679]
[1757088790949,1.7021,4293.5,4293.4,1.679]
[1757088791653,0.7199,4293.4,4293.0,3.2078]
[1757088791947,1.7021,4293.4,4293.0,3.2078]
[1757088792146,0.9822,4293.1,4293.0,3.2078]
[1757088792343,1.7021,4293.1,4293.0,3.7032]
[1757088793138,0.7199,4293.4,4293.0,4.8868]
[1757088793347,0.7199,4293.4,4293.1,0.6894]
[1757088793651,1.2031,4293.4,4293.3,1.1848]
[1757088793955,1.7021,4293.4,4293.3,1.679]
[1757088794446,1.7021,4293.4,4293.3,0.4954]
[1757088794652,0.2949,4293.5,4292.8,1.1848]
[1757088794653,0.9822,4292.9,4292.8,1.1848]
[1757088794849,0.9822,4292.9,4292.5,3.8972]
[1757088794850,0.7199,4292.8,4292.5,3.8972]
[1757088795048,1.7021,4292.6,4292.5,4.3926]
[1757088795251,1.7021,4292.6,4292.5,4.8868]
[1757088795848,0.4832,4293.0,4292.9,1.679]
[1757088796054,1.7021,4293.0,4292.9,1.679]
[1757088796846,1.997,4293.0,4292.9,0.9896]
[1757088797047,1.7021,4292.6,4292.5,3.2078]
[1757088797243,0.9822,4292.1,4292.0,4.3926]
[1757088797444,1.7021,4292.1,4292.0,4.3926]
[1757088797852,1.7021,4292.1,4292.0,4.8868]
[1757088799751,1.7021,4292.1,4292.0,3.2078]
[1757088800657,3.6729,4293.5,4293.4,0.9101]
[1757088800860,0.4651,4293.5,4293.4,1.6192]
[1757088801067,0.2949,4294.0,4293.4,1.6192]
[1757088801250,0.58862431,4293.9,4293.5,0.9854]
[1757088801454,3.2078,4294.1,4293.9,0.7091]
[1757088801765,4.3626,4294.1,4294.0,1.6192]
[1757088802059,5.40327354,4294.1,4294.0,1.6192]
[1757088802454,5.40327354,4294.1,4294.0,0.4579]
[1757088802962,5.40327354,4294.1,4293.2,0.7091]
[1757088802963,0.6897,4293.9,4293.2,0.7091]
[1757088803164,1.607,4293.9,4293.8,0.4579]
[1757088803755,1.607,4293.9,4293.8,0.9101]
[1757088803957,1.607,4293.9,4293.8,1.6192]
[1757088804154,0.6897,4294.5,4293.9,0.7091]
[1757088804360,0.4651,4294.5,4294.4,1.6192]
[1757088804758,1.607,4294.5,4294.4,0.9101]
[1757088806061,1.9014,4294.5,4294.1,0.7091]
[1757088806272,0.6897,4294.4,4294.3,0.4579]
[1757088806472,1.607,4294.4,4294.3,0.4579]
[1757088807368,1.607,4294.4,4294.3,1.6192]
[1757088808465,1.607,4294.4,4293.9,0.7091]
[1757088808667,0.6897,4294.3,4293.8,3.2078]
[1757088808867,1.607,4293.9,4293.4,0.7091]
[1757088809378,0.4651,4293.1,4293.0,1.8602]
[1757088809582,1.1548,4293.1,4293.0,1.6192]
[1757088809877,3.2078,4293.6,4293.0,0.9101]
[1757088810179,0.4651,4293.2,4293.1,1.6192]
[1757088810385,1.1548,4293.2,4293.1,1.6192]
[1757088810585,1.607,4293.2,4293.1,1.6192]
[1757088810880,3.2078,4293.6,4293.1,1.6192]
[1757088810881,3.2078,4293.6,4293.1,0.9101]
[1757088811177,1.9014,4294.0,4293.9,0.4579]
[1757088811384,0.4651,4293.7,4293.6,1.6192]
[1757088811571,1.1548,4293.7,4293.6,1.6192]
[1757088811981,0.241,4294.0,4293.9,0.9101]
[1757088812181,1.1548,4294.3,4294.2,0.9101]
[1757088812377,3.2078,4294.4,4294.3,0.7091]
[1757088812580,3.2078,4294.4,4294.3,1.6192]
[1757088812781,0.2944,4295.0,4294.4,0.7091]
[1757088812981,1.74318643,4294.9,4294.8,1.6192]
[1757088813186,1.1548,4294.9,4294.8,1.6192]
[1757088813578,1.607,4294.9,4294.8,1.6192]
[1757088813784,1.607,4294.9,4294.8,0.4579]
[1757088814793,0.6897,4294.4,4293.9,0.7091]
[1757088814984,0.2944,4294.5,4293.8,3.4448]
[1757088815185,0.4651,4294.4,4294.3,0.4579]
[1757088815383,1.607,4294.4,4294.3,0.4579]
[1757088815585,1.1548,4294.3,4294.2,0.4522]
[1757088815790,1.1548,4294.3,4294.2,1.6192]
[1757088816182,3.2078,4295.0,4294.5,0.2763]
[1757088816382,1.2117,4295.5,4295.4,0.4579]
[1757088816987,1.9014,4295.5,4295.4,0.4579]
[1757088817983,1.607,4295.5,4295.4,0.9101]
[1757088818300,1.9014,4295.5,4295.4,0.4579]
[1757088820097,1.9014,4295.5,4295.0,0.7091]
[1757088820894,0.4651,4295.0,4294.9,4.1179]
[1757088821089,0.6897,4295.3,4294.9,4.1179]
[1757088821289,1.1548,4295.3,4295.2,1.6192]
[1757088821492,0.241,4295.8,4295.2,0.9101]
[1757088821698,1.3958,4295.8,4295.7,1.6192]
[1757088822099,1.848,4295.8,4295.7,0.9101]
[1757088822599,1.607,4295.8,4295.7,0.9101]
[1757088823999,1.607,4295.8,4295.7,1.6192]
[1757088826090,1.607,4295.8,4295.7,0.9101]
[1757088826597,1.607,4295.8,4295.7,1.6192]
[1757088827201,0.6897,4296.9,4295.7,5.85199]
[1757088827402,1.607,4296.9,4296.8,0.9101]
[1757088827593,1.607,4296.9,4296.8,0.4579]
[1757088828499,1.607,4296.9,4296.8,0.9101]
[1757088829700,1.607,4296.9,4296.8,0.4579]
[1757088830702,1.2318,4296.5,4296.4,0.4793]
[1757088830899,1.6316,4296.5,4296.4,1.6739]
[1757088831807,0.6782,4296.9,4296.5,0.7216]
[1757088832104,1.4898,4297.0,4296.9,0.4793]
[1757088832303,1.4898,4297.0,4296.9,1.6739]
[1757088832497,1.1954,4297.0,4296.9,1.6739]
[1757088832697,1.91,4297.0,4296.9,1.6739]
[1757088833803,3.2078,4297.3,4296.9,0.9523]
[1757088834000,0.9534,4297.3,4296.9,3.2078]
[1757088834204,0.9534,4297.3,4297.2,0.4793]
[1757088834402,1.6316,4297.3,4297.2,0.4793]
[1757088835301,1.6316,4297.2,4297.1,1.6739]
[1757088836999,1.6316,4297.2,4297.1,0.9523]
[1757088837404,1.91,4297.0,4296.9,3.6871]
[1757088837810,1.91,4297.0,4296.9,4.8817]
[1757088838403,1.6316,4297.0,4296.9,4.8817]
[1757088839606,0.6782,4297.3,4296.9,4.1601]
[1757088839812,1.6316,4297.3,4297.2,1.6739]
[1757088840209,0.9534,4297.3,4296.9,3.2078]
[1757088840410,1.91,4297.0,4296.9,3.6871]
[1757088840903,1.91,4297.0,4296.9,1.6739]
[1757088841102,1.6316,4296.1,4296.0,1.6739]
[1757088844513,0.2784,4296.0,4295.6,0.241]
[1757088844715,1.6316,4295.5,4295.4,4.8817]
[1757088845109,1.91,4295.5,4295.4,4.1601]
[1757088845304,1.91,4295.5,4295.4,0.4793]
[1757088845513,1.91,4295.5,4295.1,0.7216]
[1757088845813,0.6782,4295.4,4295.1,0.7216]
[1757088846116,1.6316,4295.2,4295.1,1.2009]
[1757088846510,1.6316,4295.2,4295.1,1.6739]
[1757088847913,1.1658,4295.2,4295.1,0.9523]
[1757088848112,1.1658,4295.2,4295.1,1.6739]
[1757088848412,1.6316,4295.2,4295.1,0.4793]
[1757088848716,1.6316,4294.9,4294.8,4.4087]
[1757088849215,1.6316,4294.9,4294.8,4.1601]
[1757088849415,1.6316,4294.9,4294.8,3.6871]
[1757088849616,1.6316,4294.9,4294.8,4.8817]
[1757088849818,1.1658,4294.9,4294.8,4.8817]
[1757088850417,0.00087388,4295.2,4295.1,0.9523]
[1757088850610,0.6782,4296.4,4295.1,1.1933]
[1757088850816,0.6782,4296.4,4296.3,0.4793]
[1757088850817,1.6316,4296.4,4296.3,0.4793]
[1757088851921,1.6316,4296.4,4296.3,1.6739]
[1757088853416,1.6316,4296.4,4296.3,0.9523]
[1757088853823,1.6316,4296.4,4296.3,0.4793]
[1757088854323,0.6782,4296.3,4295.7,4.1714]
[1757088854622,0.4876,4295.8,4295.7,5.1237]
[1757088855422,1.6316,4295.8,4295.7,4.8817]
[1757088857120,0.4876,4295.8,4295.7,4.8817]
[1757088857324,1.1658,4295.8,4295.7,4.8817]
[1757088859716,3.2078,4296.6,4296.3,1.6065]
[1757088859717,1.6119,4296.4,4296.3,1.6065]
[1757088861119,1.6119,4296.4,4296.3,0.8953]
[1757088861321,1.6119,4296.4,4295.9,0.7112]
[1757088861627,0.9474,4296.4,4295.8,0.9532]
[1757088861931,1.1503,4295.9,4295.8,1.8485]
[1757088862322,0.9474,4295.5,4295.4,1.1675]
[1757088862625,1.6119,4295.5,4295.4,1.6065]
[1757088863027,0.4858,4295.5,4295.4,1.6065]
[1757088863231,1.6119,4295.5,4295.4,1.6065]
[1757088863621,1.1503,4295.5,4295.4,1.6065]
[1757088864124,0.4858,4295.5,4295.4,1.6065]
[1757088864324,0.9055,4295.9,4295.4,1.6065]
[1757088864524,0.6645,4296.0,4295.6,0.7112]
[1757088864723,0.2819,4296.5,4296.4,0.8953]
[1757088864724,1.2293,4296.5,4296.4,0.8953]
[1757088865025,1.8938,4296.5,4296.4,1.6065]
[1757088865820,3.2078,4297.1,4296.5,1.1695]
[1757088866026,2.43360438,4296.9,4296.8,1.6065]
[1757088866417,2.20095627,4296.9,4296.8,0.8953]
[1757088866620,2.20095627,4296.9,4296.8,0.4563]
[1757088866819,1.77745627,4296.9,4296.2,3.2078]
[1757088867024,1.6119,4296.3,4296.2,4.8143]
[1757088868326,3.2078,4297.1,4297.0,1.6065]
[1757088868327,4.8197,4297.1,4297.0,1.6065]
[1757088868519,2.44215649,4297.1,4297.0,1.6065]
[1757088868724,2.20115649,4297.1,4297.0,1.6065]
[1757088869918,2.44215649,4297.1,4297.0,1.6065]
[1757088870435,0.58925649,4297.1,4297.0,1.8807]
[1757088870734,0.241,4297.3,4297.0,1.1695]
[1757088870926,0.4858,4297.2,4297.1,1.6065]
[1757088871429,1.1503,4297.2,4297.1,1.6065]
[1757088871735,1.6119,4297.2,4297.1,1.6065]
[1757088873828,0.4858,4297.2,4297.1,1.6065]
[1757088874033,1.1503,4297.2,4297.1,1.6065]
[1757088875022,1.6119,4297.2,4297.1,1.6065]
[1757088876336,0.9474,4297.2,4296.7,3.2078]
[1757088876537,1.1503,4296.8,4296.7,4.1031]
[1757088876737,1.6119,4296.8,4296.7,4.1031]
[1757088876931,0.241,4297.3,4296.7,4.1031]
[1757088877131,1.1884,4297.3,4297.2,0.4563]
[1757088877324,1.1884,4297.3,4296.8,0.7112]
[1757088877623,1.1503,4297.2,4297.1,0.4563]
[1757088877828,1.6119,4297.2,4297.1,0.4563]
[1757088878234,1.6119,4297.3,4297.2,1.1502]
[1757088878439,2.20188235,4297.3,4296.8,0.7112]
[1757088878625,0.241,4297.4,4297.1,0.4563]
[1757088878829,1.6119,4297.2,4297.1,1.6065]
[1757088879839,1.6119,4297.2,4297.1,0.8953]
[1757088880140,2.20223814,4297.2,4297.1,0.8953]
[1757088880641,2.20223814,4297.2,4297.1,1.6065]
[1757088881735,1.6119,4296.8,4296.0,0.7112]
[1757088882035,1.6119,4296.1,4296.0,0.4563]
[1757088882237,0.2819,4296.5,4295.7,1.6065]
[1757088882238,1.6119,4295.8,4295.7,1.6065]
[1757088882628,3.2078,4296.8,4295.7,1.6065]
[1757088882834,4.3581,4296.8,4296.7,1.6065]
[1757088883032,4.9484502,4296.8,4296.7,1.6065]
[1757088883442,1.6119,4296.3,4296.2,0.4563]
[1757088884140,1.6119,4296.3,4295.9,0.7112]
[1757088884334,1.8938,4296.0,4295.9,1.1675]
[1757088884535,1.8938,4296.0,4295.9,1.6065]
[1757088884728,1.6119,4296.0,4295.9,1.6065]
[1757088884936,0.4858,4296.0,4295.9,1.6065]
[1757088886238,1.1503,4296.0,4295.9,1.6065]
[1757088886439,1.6119,4296.0,4295.9,1.6065]
[1757088886937,1.3923,4296.3,4296.2,1.6065]
[1757088887134,1.8539,4296.3,4296.2,1.6065]
[1757088887841,1.8539,4296.3,4296.2,0.8953]
[1757088889044,0.7107,4296.2,4295.6,3.2078]
[1757088889250,1.619,4295.7,4295.6,5.0392]
[1757088890338,0.278,4296.0,4295.6,5.0392]
[1757088890640,0.4316,4295.8,4295.7,1.5894]
[1757088890841,1.1423,4295.8,4295.7,1.5894]
[1757088891146,1.619,4295.8,4295.7,1.5894]
[1757088892535,0.4316,4295.8,4295.7,1.5894]
[1757088892940,0.7107,4296.5,4295.8,0.7011]
[1757088893147,1.1423,4296.5,4296.4,1.5894]
[1757088893642,0.7107,4296.7,4296.5,0.9689]
[1757088893845,0.4316,4296.7,4296.6,1.5894]
[1757088894049,1.1423,4296.7,4296.6,1.5894]
[1757088894246,1.1423,4296.7,4296.6,1.87635589]
[1757088895247,1.619,4296.7,4296.6,1.87635589]
[1757088896148,1.619,4296.7,4296.6,1.5894]
[1757088897146,1.619,4296.7,4296.5,0.2678]
[1757088897147,0.9083,4296.8,4296.7,1.5894]
[1757088897352,1.619,4296.8,4296.7,1.5894]
[1757088899248,1.619,4296.8,4296.7,0.8883]
[1757088899448,1.619,4296.3,4296.2,3.6465]
[1757088900066,1.619,4296.3,4296.2,4.7972]
[1757088900251,1.619,4296.3,4295.2,2.0915058]
[1757088900252,1.619,4296.3,4295.7,3.2078]
[1757088900449,1.619,4295.8,4295.7,3.6465]
[1757088901051,1.619,4295.8,4295.7,4.7972]
[1757088901753,1.619,4295.8,4295.7,4.0961]
[1757088902752,1.619,4295.8,4295.7,1.5894]
[1757088904059,0.4316,4295.8,4295.7,1.5894]
[1757088904453,1.1423,4295.8,4295.7,1.5894]
[1757088905159,1.619,4295.8,4295.7,1.5894]
[1757088908362,0.9083,4295.8,4295.3,0.7011]
[1757088908548,0.278,4296.0,4295.6,0.4387]
[1757088908549,0.4767,4295.7,4295.6,0.4387]
[1757088908752,1.619,4295.7,4295.6,1.1398]
[1757088909161,1.619,4295.7,4295.6,0.4387]
[1757088910363,1.619,4295.7,4295.6,1.5894]
[1757088915955,1.1423,4295.7,4295.6,1.5894]
[1757088916462,1.619,4295.7,4295.6,1.5894]
[1757088917259,1.619,4295.7,4295.6,0.8883]
[1757088917561,1.619,4295.7,4295.6,1.5894]
[1757088918765,1.619,4295.7,4295.6,0.8883]
[1757088919065,1.619,4295.7,4295.6,0.4387]
[1757088919263,1.619,4295.7,4295.3,0.6726]
[1757088919561,1.5558,4295.4,4295.3,0.446]
[1757088919767,0.9069,4294.8,4294.7,3.2078]
[1757088920160,0.9069,4294.8,4294.7,4.7968]
[1757088920161,1.5558,4294.8,4294.7,4.7968]
[1757088921467,0.4938,4295.5,4294.8,0.6726]
[1757088921764,1.5558,4294.9,4294.8,1.589]
[1757088923071,0.9069,4294.9,4294.7,3.2078]
[1757088923267,1.5558,4294.8,4294.7,4.7968]
[1757088924868,3.6699,4295.4,4295.3,0.9164]
[1757088925071,0.6489,4295.6,4295.3,4.1242]
[1757088925269,0.6489,4295.6,4295.5,1.589]
[1757088925464,3.2078,4296.3,4295.6,0.6726]
[1757088925778,3.2078,4296.3,4295.5,1.1746]
[1757088925779,1.8338,4296.0,4295.9,1.589]
[1757088926268,1.5558,4296.0,4295.9,1.589]
[1757088926573,4.3188,4296.3,4296.2,1.589]
[1757088926870,1.111,4296.3,4296.2,1.589]
[1757088927370,1.5558,4296.3,4296.2,1.589]
[1757088928870,1.5558,4296.3,4296.2,0.9164]
[1757088929968,1.5558,4296.3,4295.5,0.446]
[1757088929969,1.5558,4295.6,4295.5,0.446]
[1757088930468,0.9069,4295.6,4295.3,3.2078]
[1757088930772,0.2528,4296.0,4295.3,3.2078]
[1757088930773,1.5558,4295.4,4295.3,3.2078]
[1757088930971,1.5558,4295.4,4294.8,0.241]
[1757088930972,0.6489,4295.3,4294.8,0.241]
[1757088931171,0.4621,4295.0,4294.9,1.589]
[1757088932466,1.111,4295.0,4294.9,1.589]
[1757088932768,1.5558,4295.0,4294.9,1.589]
[1757088934080,0.6489,4294.9,4294.7,3.2078]
[1757088934277,1.5558,4294.8,4294.7,3.6538]
[1757088935075,1.5558,4294.8,4294.2,3.2078]
[1757088935076,0.2528,4294.5,4294.2,3.2078]
[1757088935261,1.5558,4294.3,4294.2,3.6538]
[1757088935464,1.5558,4294.3,4294.2,4.7968]
[1757088935864,1.5558,4294.3,4294.2,0.9164]
[1757088936062,1.5558,4294.3,4294.2,1.589]
[1757088936368,0.4621,4294.3,4294.2,1.589]
[1757088937365,0.2528,4295.0,4294.2,1.589]
[1757088937566,0.2528,4295.0,4294.0,0.2582]
[1757088937567,0.4621,4294.4,4294.3,1.589]
[1757088937776,1.111,4294.4,4294.3,1.589]
[1757088938572,0.2528,4295.0,4294.3,1.589]
[1757088938772,0.6489,4294.9,4294.8,0.9164]
[1757088938972,1.111,4295.1,4295.0,1.1746]
[1757088939276,1.111,4295.4,4295.3,0.9164]
[1757088939578,1.111,4295.4,4295.3,1.589]
[1757088939967,0.6489,4295.8,4295.3,1.589]
[1757088940175,4.7636,4295.9,4295.8,1.589]
[1757088940472,5.35437023,4295.9,4295.2,0.6726]
[1757088940677,4.7636,4295.9,4295.2,0.6726]
[1757088941776,5.0046,4295.9,4295.8,0.9164]
[1757088941974,5.59540273,4295.9,4295.8,1.589]
[1757088942172,5.0046,4295.9,4295.8,1.589]
[1757088942374,5.59543732,4295.9,4295.8,1.589]
[1757088943180,5.35443732,4295.9,4295.8,1.589]
[1757088943381,3.2078,4295.9,4295.8,1.589]
[1757088943679,0.6489,4296.1,4295.9,0.6726]
[1757088943878,1.111,4296.1,4296.0,1.589]
[1757088944381,1.5558,4296.1,4296.0,1.589]
[1757088945382,1.5558,4296.1,4296.0,0.446]
[1757088945777,1.5558,4296.1,4296.0,0.9164]
[1757088946078,1.5558,4296.1,4296.0,1.589]
[1757088946469,0.241,4296.4,4296.0,1.589]
[1757088946676,1.111,4296.1,4296.0,1.589]
[1757088946876,1.5558,4296.1,4296.0,1.589]
[1757088947275,0.241,4296.4,4295.8,3.2078]
[1757088947276,1.5558,4295.9,4295.8,3.2078]
[1757088947483,0.9069,4295.6,4295.5,1.1186]
[1757088947777,1.5558,4295.6,4295.5,1.589]
[1757088949078,0.4222,4295.6,4295.5,1.1807]
[1757088949283,0.6772,4296.3,4295.5,1.1807]
[1757088949672,0.4222,4295.7,4295.6,1.5703]
[1757088949876,1.0994,4295.7,4295.6,1.5703]
[1757088950086,1.5376,4295.7,4295.6,1.5703]
[1757088950479,1.5376,4295.7,4295.6,0.4273]
[1757088950884,1.1305,4295.5,4295.4,0.6683]
[1757088951180,1.8077,4295.5,4295.4,0.6683]
[1757088951486,1.5376,4295.5,4295.4,1.8113]
[1757088952678,1.8077,4295.5,4295.4,0.4273]
[1757088953083,1.8077,4295.5,4295.1,0.241]
[1757088953479,1.8077,4295.5,4295.0,0.6845]
[1757088953686,0.6772,4295.4,4294.7,4.1333]
[1757088953878,1.5376,4294.8,4294.7,5.0191]
[1757088955175,0.6772,4295.2,4294.7,5.0191]
[1757088955379,0.2701,4295.5,4294.8,0.6845]
[1757088955587,0.4222,4294.9,4294.8,1.5703]
[1757088955787,1.0994,4294.9,4294.8,1.5703]
[1757088956588,0.4222,4294.9,4294.8,1.5703]
[1757088957782,1.5376,4294.9,4294.8,1.5703]
[1757088959794,1.5376,4294.9,4294.8,0.8858]
[1757088959980,1.5376,4294.9,4294.8,0.4273]
[1757088960181,1.5376,4294.9,4294.7,3.2078]
[1757088960384,1.5376,4294.8,4294.7,3.2078]
[1757088960586,1.8077,4294.5,4294.4,1.3528]
[1757088960782,0.8604,4294.3,4294.2,3.2078]
[1757088960985,1.5376,4294.3,4294.2,3.2078]
[1757088962480,1.5376,4293.8,4293.7,0.6683]
[1757088962980,1.5376,4293.8,4293.7,1.8113]
[1757088963182,1.5376,4293.8,4293.7,1.5703]
[1757088963784,1.5376,4293.8,4293.7,0.4273]
[1757088963985,0.6772,4293.7,4293.6,3.2078]
[1757088964184,0.6772,4293.7,4293.6,4.7781]
[1757088964185,1.5376,4293.7,4293.6,4.7781]
[1757088965092,0.241,4294.4,4293.6,4.7781]
[1757088965093,1.5376,4294.4,4294.3,1.5703]
[1757088966297,1.5376,4294.4,4294.3,0.8858]
[1757088966593,1.5376,4294.4,4294.3,0.4273]
[1757088967598,1.5376,4294.4,4294.3,1.5703]
[1757088970497,0.6772,4294.3,4293.8,0.9255]
[1757088970699,0.8604,4293.9,4293.8,1.3528]
[1757088971001,1.5376,4293.9,4293.8,1.8113]
[1757088972692,1.5376,4293.9,4293.8,0.8858]
[1757088972894,1.5376,4293.9,4293.6,3.2078]
[1757088973197,1.0994,4293.8,4293.7,1.5703]
[1757088974093,1.5376,4293.8,4293.7,0.4273]
[1757088974788,1.5376,4293.8,4293.7,1.5703]
[1757088975698,1.5376,4294.4,4294.3,0.4273]
[1757088976795,1.5376,4294.4,4294.3,1.5703]
[1757088977193,1.5376,4294.4,4294.3,0.4273]
[1757088977389,0.8604,4294.4,4293.6,3.2078]
[1757088977590,0.2701,4294.5,4293.0,0.2643]
[1757088977591,0.2701,4293.5,4293.1,0.6845]
[1757088977899,1.5376,4293.2,4293.1,0.4273]
[1757088978492,0.6797,4293.1,4293.0,3.6499]
[1757088978692,1.5672,4293.1,4293.0,0.4421]
[1757088979199,1.5672,4293.1,4293.0,1.5082]
[1757088979692,0.2701,4293.5,4293.0,1.7609]
[1757088979693,1.1908,4293.5,4293.0,1.7609]
[1757088979896,1.1319,4293.4,4293.3,1.5082]
[1757088980499,0.2548,4293.0,4292.5,4.114]
[1757088980691,0.8875,4292.7,4292.6,1.5082]
[1757088980892,1.5672,4292.7,4292.6,1.5082]
[1757088982300,1.5672,4292.7,4292.2,0.6419]
[1757088982493,1.5672,4292.3,4292.2,1.084]
[1757088982795,4.775,4292.3,4292.2,0.4421]
[1757088983002,1.5672,4292.3,4292.2,0.4421]
[1757088983297,0.4522,4292.3,4292.2,1.5082]
[1757088983898,1.1319,4292.3,4292.2,1.5082]
[1757088984197,1.5672,4292.3,4292.2,1.5082]
[1757088984501,1.5672,4292.3,4291.9,3.2078]
[1757088984502,0.6797,4292.2,4291.9,3.8497]
[1757088984688,0.6797,4292.2,4292.1,0.4421]
[1757088984689,1.5672,4292.2,4292.1,0.4421]
[1757088985900,1.5672,4292.2,4292.1,1.084]
[1757088986704,1.5672,4292.2,4292.1,0.4421]
[1757088988701,1.5672,4292.2,4292.1,1.5082]
[1757088988900,0.4522,4292.3,4292.2,1.5082]
[1757088989101,1.1319,4292.3,4292.2,1.80466934]
[1757088989503,1.5672,4292.3,4292.2,1.80466934]
[1757088989703,1.5672,4292.3,4292.2,0.73856934]
[1757088989905,1.5672,4292.3,4292.2,0.29646934]
[1757088990124,1.822,4291.5,4291.1,0.6419]
[1757088990410,1.822,4291.5,4291.4,3.50436152]
[1757088991203,1.822,4291.5,4291.4,0.29656152]
[1757088991500,1.822,4291.5,4291.1,0.6419]
[1757088991501,1.822,4291.5,4290.8,4.0907]
[1757088991701,1.822,4291.5,4290.9,0.29659064]
[1757088991904,1.822,4291.5,4291.0,0.29659064]
[1757088992107,1.822,4291.5,4291.1,0.29659064]
[1757088992303,1.822,4291.5,4291.2,0.29659064]
[1757088992502,1.822,4291.5,4291.3,0.29659064]
[1757088992707,1.5672,4291.4,4291.3,0.4421]
[1757088992903,1.822,4292.0,4291.9,0.8663]
[1757088993205,0.6797,4292.2,4291.9,0.8663]
[1757088993503,1.1319,4292.1,4292.0,1.5082]
[1757088993905,1.5672,4292.1,4292.0,1.5082]
[1757088994103,1.5672,4292.1,4292.0,1.80445367]
[1757088995404,0.4522,4292.1,4292.0,1.80445367]
[1757088995908,1.5672,4292.1,4292.0,1.80445367]
[1757088997512,1.5672,4292.1,4292.0,1.16255367]
[1757088998313,1.5672,4292.1,4292.0,0.73835367]
[1757088998800,1.5672,4292.1,4292.0,1.16255367]
[1757088998999,4.3501,4293.0,4292.9,0.4421]
[1757088999609,5.0298,4293.0,4292.9,0.4421]
[1757088999914,1.1319,4293.4,4293.3,1.5082]
[1757089000109,1.5672,4293.4,4293.3,1.80414172]
[1757089000519,1.5672,4293.4,4293.3,1.16224172]
[1757089000708,1.5672,4293.4,4293.3,0.29594172]
[1757089001014,1.5672,4293.4,4293.3,0.73804172]
[1757089001812,1.5672,4293.4,4293.3,0.29594172]
[1757089002508,1.5672,4293.4,4293.3,0.73804172]
[1757089005122,1.5672,4293.4,4293.3,0.29594172]
[1757089006212,1.822,4293.0,4292.9,4.0741]
[1757089006413,1.822,4293.0,4292.9,5.0123645]
[1757089006615,1.5672,4293.0,4292.9,5.0123645]
[1757089007312,0.241,4293.3,4293.0,0.8946]
[1757089007516,1.822,4294.0,4293.9,1.5082]
[1757089007714,0.4522,4294.1,4294.0,0.8663]
[1757089007921,0.4522,4294.1,4294.0,2.05727417]
[1757089008411,0.6635,4294.4,4294.0,1.41537417]
[1757089008615,1.0988,4294.4,4294.3,1.5446]
[1757089008808,1.5434,4294.4,4294.3,1.5446]
[1757089010018,1.5434,4294.4,4294.3,0.8887]
[1757089010521,1.5434,4294.4,4294.3,0.4449]
[1757089011417,0.6635,4294.3,4293.9,3.2078]
[1757089011618,1.7837,4294.0,4293.7,0.241]
[1757089011919,1.7837,4294.0,4293.8,0.29643033]
[1757089012114,1.7837,4294.0,4293.9,0.29643033]
[1757089012306,1.7837,4294.0,4293.7,0.241]
[1757089012518,1.7837,4294.0,4293.8,0.29638272]
[1757089012816,1.7837,4294.0,4293.9,0.8887]
[1757089013620,1.7837,4294.0,4293.7,0.241]
[1757089013815,1.7837,4294.0,4293.8,0.29635254]
[1757089014115,0.6635,4293.4,4293.3,0.4449]
[1757089014314,0.8799,4293.4,4292.9,3.2078]